bitfinex-derivatives/quotes_SOLF0:USTF0_20241016
["timestamp","ask_amount","ask_price","bid_price","bid_amount"]
[1729100299746,13.9,155.21,155.17,3.2225]
[1729100300548,17.1219,155.21,155.17,3.2225]
[1729100300748,17.1219,155.21,155.17,6.3943507]
[1729100301246,13.9,155.21,155.18,3.2225]
[1729100302255,8.92,155.21,155.18,3.2225]
[1729100302454,8.92,155.21,155.18,6.44263094]
[1729100302756,8.92,155.22,155.19,3.2222]
[1729100303651,8.92,155.22,155.17,8.92]
[1729100303652,12.1417,155.22,155.18,3.2224]
[1729100303841,12.1417,155.22,155.18,6.49860608]
[1729100304246,12.1417,155.22,155.18,3.27620608]
[1729100304556,8.2016,155.23,155.18,8.92]
[1729100304750,8.92,155.24,155.18,8.92]
[1729100304943,13.9,155.24,155.2,3.222]
[1729100305151,17.1214,155.24,155.2,3.222]
[1729100305754,8.92,155.25,155.22,3.2215]
[1729100307058,2.8323,155.31,155.22,8.92]
[1729100307258,8.92,155.28,155.22,8.92]
[1729100307459,8.92,155.28,155.23,8.92]
[1729100307655,17.1199,155.31,155.27,3.2205]
[1729100307859,17.1199,155.31,155.27,6.37630237]
[1729100308158,17.1199,155.31,155.27,3.15580237]
[1729100308361,12.1399,155.31,155.26,3.2207]
[1729100308547,12.1399,155.31,155.26,3.15566784]
[1729100308751,12.1399,155.31,155.25,8.92]
[1729100309261,12.1399,155.31,155.26,8.92]
[1729100309460,12.1399,155.31,155.27,3.2205]
[1729100309951,3.2199,155.31,155.26,1.3942]
[1729100310151,3.2196,155.32,155.28,3.2204]
[1729100312762,4.98,155.33,155.28,3.2204]
[1729100312956,3.2198,155.31,155.28,3.2204]
[1729100313954,3.2196,155.32,155.28,3.2204]
[1729100314949,3.2196,155.32,155.26,1.3942]
[1729100314950,6.0512,155.36,155.32,3.2196]
[1729100315250,4.98,155.36,155.26,15.3042]
[1729100315459,71.76785518,155.37,155.26,15.3042]
[1729100315657,4.98,155.37,155.29,13.91]
[1729100315859,4.98,155.37,155.29,18.89]
[1729100316258,3.2188,155.36,155.33,3.2193]
[1729100316650,3.2182,155.39,155.35,3.2188]
[1729100317153,3.2182,155.39,155.35,6.51426223]
[1729100317459,18.89,155.41,155.35,3.29546223]
[1729100317650,18.89,155.41,155.33,6.4199]
[1729100318053,5.02,155.42,155.33,20.3299]
[1729100318253,3.2179,155.41,155.33,23.49233966]
[1729100318459,3.2179,155.41,155.36,3.2186]
[1729100319259,5.02,155.42,155.36,3.2186]
[1729100319453,3.218,155.4,155.36,3.2186]
[1729100321954,3.218,155.4,155.36,3.2188]
[1729100322150,18.93,155.42,155.33,4.56233966]
[1729100322558,13.91,155.4,155.33,4.56233966]
[1729100324054,13.91,155.37,155.33,3.16243966]
[1729100324263,13.91,155.37,155.29,5.02]
[1729100324763,3.2193,155.34,155.29,8.24]
[1729100325371,3.2193,155.34,155.3,3.22]
[1729100325575,13.91,155.37,155.3,3.22]
[1729100325760,3.2194,155.33,155.3,3.22]
[1729100326365,3.2197,155.32,155.29,5.02]
[1729100326669,16.7938,155.37,155.29,5.02]
[1729100326861,3.2197,155.32,155.29,3.2201]
[1729100330064,3.2197,155.32,155.3,3.22]
[1729100331971,3.2197,155.32,155.31,8.91]
[1729100338771,3.2197,155.32,155.3,3.22]
[1729100343471,3.2195,155.33,155.3,12.13]
[1729100344574,3.2197,155.32,155.3,12.13]
[1729100347083,3.2195,155.33,155.3,12.13]
[1729100347284,3.2195,155.33,155.3,3.22]
[1729100347984,8.91,155.32,155.28,1.4429]
[1729100348188,8.91,155.29,155.24,8.91]
[1729100348684,3.2208,155.27,155.24,3.2213]
[1729100351077,3.221,155.26,155.23,8.91]
[1729100351482,3.221,155.26,155.2,4.94]
[1729100351483,8.91,155.25,155.2,13.85]
[1729100351681,12.1312,155.25,155.21,3.2218]
[1729100352078,3.2213,155.24,155.21,3.2218]
[1729100352773,8.91,155.25,155.2,4.94]
[1729100352974,13.85,155.27,155.2,13.85]
[1729100353173,1.4312,155.3,155.2,13.85]
[1729100353174,8.91,155.31,155.25,8.91]
[1729100353478,3.2204,155.29,155.26,3.2207]
[1729100353986,8.1601,155.3,155.26,3.2207]
[1729100354286,13.85,155.3,155.25,3.19279541]
[1729100354482,13.85,155.3,155.21,2.7585]
[1729100354483,8.91,155.28,155.21,2.7585]
[1729100354682,8.91,155.28,155.23,3.2213]
[1729100354884,8.91,155.28,155.22,8.91]
[1729100356185,3.2208,155.27,155.24,3.2212]
[1729100356384,8.91,155.28,155.22,8.91]
[1729100356884,8.91,155.28,155.24,8.91]
[1729100357291,3.2207,155.27,155.24,12.1312]
[1729100358086,3.2203,155.29,155.26,3.2207]
[1729100358289,3.2203,155.29,155.27,3.1855037]
[1729100358882,17.07,155.3,155.27,6.4060037]
[1729100360688,13.85,155.3,155.27,3.1855037]
[1729100360887,3.2202,155.29,155.26,3.2208]
[1729100361181,3.2202,155.29,155.27,3.21170848]
[1729100361789,3.2202,155.29,155.26,3.2208]
[1729100362689,3.2202,155.29,155.26,6.43766165]
[1729100362883,13.85,155.3,155.27,3.2205]
[1729100363083,8.91,155.28,155.2,8.91]
[1729100363289,8.91,155.26,155.2,8.91]
[1729100363490,8.91,155.26,155.23,3.2213]
[1729100364487,12.1309,155.26,155.22,3.2215]
[1729100364793,8.91,155.23,155.18,10.3093]
[1729100364985,8.91,155.21,155.17,8.17269951]
[1729100365186,8.91,155.21,155.17,4.94]
[1729100365693,8.91,155.23,155.17,12.0814494]
[1729100366385,3.222,155.21,155.18,3.2225]
[1729100369484,8.91,155.23,155.17,12.0814494]
[1729100369691,2.8525,155.25,155.17,3.1714494]
[1729100369692,3.2225,155.19,155.17,3.1714494]
[1729100369891,8.91,155.21,155.16,8.91]
[1729100370090,3.2224,155.19,155.16,12.1328]
[1729100370495,3.2224,155.19,155.16,15.42920657]
[1729100371492,3.2221,155.21,155.17,12.1326]
[1729100371803,3.2221,155.21,155.17,8.91]
[1729100372495,3.2221,155.21,155.18,3.2224]
[1729100377895,3.2215,155.23,155.2,3.2221]
[1729100378101,8.91,155.22,155.17,8.91]
[1729100378300,8.91,155.21,155.15,8.91]
[1729100378596,3.2222,155.2,155.17,3.2227]
[1729100379000,2.8525,155.25,155.17,8.91]
[1729100379303,3.2216,155.23,155.19,8.91]
[1729100379503,8.91,155.23,155.14,8.13810285]
[1729100379698,3.2219,155.21,155.17,12.1325]
[1729100379900,8.91,155.21,155.15,8.91]
[1729100380205,3.2223,155.2,155.16,3.2228]
[1729100380400,8.91,155.21,155.16,3.2228]
[1729100380703,3.2222,155.2,155.17,3.2227]
[1729100381602,3.2222,155.2,155.17,12.1327]
[1729100382205,3.2215,155.23,155.19,3.2222]
[1729100382406,8.91,155.23,155.19,3.2222]
[1729100382809,8.91,155.23,155.17,8.91]
[1729100383107,3.2219,155.21,155.18,3.2224]
[1729100383900,8.91,155.23,155.17,8.91]
[1729100384093,3.2217,155.22,155.19,3.2222]
[1729100394411,3.2218,155.22,155.19,3.2222]
[1729100394815,8.91,155.23,155.16,8.91]
[1729100396511,8.91,155.21,155.16,8.91]
[1729100397016,3.2221,155.2,155.17,3.2226]
[1729100397818,12.132,155.21,155.18,3.2223]
[1729100398018,8.91,155.23,155.16,8.91]
[1729100398909,8.91,155.23,155.16,13.85]
[1729100399513,3.2219,155.21,155.19,3.2222]
[1729100400419,8.91,155.23,155.16,4.94]
[1729100400719,3.2219,155.21,155.18,3.2224]
[1729100402218,3.2224,155.19,155.16,3.2229]
[1729100402515,3.2224,155.19,155.14,8.13810285]
[1729100402827,3.2224,155.19,155.14,13.85]
[1729100403320,3.2224,155.19,155.17,3.2227]
[1729100404916,3.2218,155.22,155.19,3.2222]
[1729100405306,13.85,155.24,155.19,3.2222]
[1729100405513,13.85,155.24,155.18,8.91]
[1729100405514,3.222,155.21,155.18,12.1324]
[1729100406321,3.222,155.21,155.18,3.2224]
[1729100407218,3.2226,155.18,155.15,3.223]
[1729100408223,3.2228,155.17,155.14,15.42401848]
[1729100408521,8.91,155.19,155.14,12.20081848]
[1729100408923,3.2226,155.18,155.15,3.223]
[1729100411720,17.0722,155.2,155.17,3.2226]
[1729100411925,4.94,155.2,155.17,8.91]
[1729100412129,13.85,155.23,155.17,8.91]
[1729100412833,3.222,155.21,155.18,3.2224]
[1729100413529,12.132,155.21,155.16,8.91]
[1729100413732,12.132,155.21,155.17,3.2226]
[1729100413933,12.132,155.21,155.17,6.4170416]
[1729100414824,3.2217,155.22,155.19,3.2223]
[1729100415125,3.2217,155.22,155.17,12.1044416]
[1729100416430,3.2217,155.22,155.18,3.2223]
[1729100418730,3.2217,155.22,155.19,3.2223]
[1729100423237,3.2217,155.22,155.17,12.1044416]
[1729100423442,3.2217,155.22,155.18,3.2224]
[1729100424138,14.31514431,155.3,155.17,12.1044416]
[1729100424139,19.35,155.32,155.21,8.91]
[1729100424342,8.91,155.26,155.21,8.91]
[1729100424534,4.94,155.27,155.22,8.91]
[1729100424735,3.2209,155.26,155.23,3.2214]
[1729100425437,3.2208,155.27,155.24,3.2212]
[1729100425843,1.4494,155.32,155.25,8.91]
[1729100426038,3.2201,155.3,155.27,3.2206]
[1729100426739,3.2201,155.3,155.27,6.36995066]
[1729100427141,3.2201,155.3,155.27,3.2206]
[1729100427348,8.91,155.28,155.26,3.25440421]
[1729100427647,17.0706,155.27,155.26,3.25440421]
[1729100428952,13.85,155.27,155.21,12.1318]
[1729100429147,3.2212,155.25,155.21,8.91]
[1729100430445,3.2212,155.25,155.21,12.1317]
[1729100431041,4.94,155.27,155.22,8.91]
[1729100431347,8.91,155.28,155.23,8.91]
[1729100431750,3.2208,155.27,155.23,12.1314]
[1729100433946,3.2212,155.25,155.23,8.91]
[1729100434152,3.2212,155.25,155.22,8.91]
[1729100434951,3.2212,155.25,155.22,12.1317]
[1729100436650,3.2212,155.25,155.23,8.91]
[1729100438250,8.91,155.29,155.23,8.91]
[1729100438452,8.91,155.29,155.24,8.91]
[1729100438648,13.85,155.3,155.24,8.91]
[1729100438951,3.2205,155.28,155.25,8.91]
[1729100439151,13.85,155.31,155.25,8.91]
[1729100439548,3.2203,155.29,155.25,12.1309]
[1729100440455,3.2202,155.3,155.27,8.91]
[1729100440661,3.2202,155.3,155.27,12.13081934]
[1729100440856,4.94,155.31,155.27,12.13081934]
[1729100441155,3.22,155.3,155.27,12.13081934]
[1729100444153,1.3327,155.36,155.29,8.91]
[1729100444466,13.85,155.38,155.32,8.91]
[1729100444656,8.91,155.36,155.31,8.91]
[1729100444865,3.2193,155.34,155.31,8.91]
[1729100445361,8.91,155.36,155.31,8.91]
[1729100445559,3.2194,155.33,155.31,8.91]
[1729100454164,3.2192,155.34,155.31,8.91]
[1729100454472,3.2192,155.34,155.31,12.1297]
[1729100455264,3.2192,155.34,155.33,8.91]
[1729100456671,4.94,155.38,155.33,8.91]
[1729100457266,3.219,155.35,155.33,8.91]
[1729100457466,8.91,155.39,155.33,12.1293]
[1729100457666,3.2188,155.36,155.33,12.1293]
[1729100458165,3.2188,155.36,155.34,8.91]
[1729100459570,3.219,155.35,155.34,8.91]
[1729100460269,3.219,155.35,155.3,4.94]
[1729100460270,8.91,155.36,155.3,4.94]
[1729100460478,8.91,155.36,155.28,4.2435]
[1729100460479,8.91,155.36,155.31,8.91]
[1729100460770,3.2193,155.34,155.31,8.91]
[1729100460970,3.2193,155.34,155.32,8.91]
[1729100462574,3.2201,155.3,155.28,1.4148]
[1729100462779,8.91,155.33,155.28,10.3248]
[1729100463078,8.91,155.34,155.29,8.91]
[1729100463282,13.85,155.36,155.31,8.91]
[1729100464271,3.2195,155.33,155.31,8.91]
[1729100465173,3.2199,155.31,155.29,8.91]
[1729100465962,8.91,155.33,155.28,10.3248]
[1729100466670,3.2202,155.29,155.28,10.3248]
[1729100466974,8.91,155.33,155.28,10.3248]
[1729100467169,3.2197,155.32,155.3,8.91]
[1729100467368,13.85,155.36,155.3,8.91]
[1729100467771,3.2197,155.32,155.3,8.91]
[1729100469679,8.91,155.34,155.29,8.91]
[1729100470172,3.2197,155.32,155.29,8.91]
[1729100470378,8.91,155.34,155.29,8.91]
[1729100470769,3.2195,155.33,155.29,8.91]
[1729100470972,8.91,155.34,155.29,8.91]
[1729100471681,3.2199,155.31,155.29,8.91]
[1729100472579,3.2196,155.33,155.3,8.91]
[1729100472978,13.85,155.36,155.3,8.91]
[1729100473377,3.2196,155.32,155.3,8.91]
[1729100473689,4.94,155.36,155.31,8.91]
[1729100473982,3.2194,155.33,155.31,8.91]
[1729100475681,8.91,155.37,155.31,8.91]
[1729100475881,3.2191,155.35,155.31,12.1297]
[1729100476186,13.85,155.38,155.31,12.1297]
[1729100476388,3.2192,155.34,155.31,12.1297]
[1729100479487,8.91,155.37,155.29,2.7875]
[1729100479787,8.91,155.37,155.31,8.91]
[1729100482593,3.2193,155.34,155.31,8.91]
[1729100484587,3.2193,155.34,155.32,8.91]
[1729100484793,3.2191,155.35,155.32,8.91]
[1729100485592,76.67853481,155.4,155.34,8.91]
[1729100485794,3.2188,155.36,155.34,8.91]
[1729100486094,8.91,155.38,155.32,8.91]
[1729100486402,3.2191,155.35,155.32,8.91]
[1729100489193,3.2191,155.35,155.32,12.1296]
[1729100489393,3.2191,155.35,155.32,8.91]
[1729100493697,3.2187,155.37,155.34,8.91]
[1729100494199,85.58853481,155.4,155.35,8.91]
[1729100494400,85.58853481,155.4,155.35,12.07679559]
[1729100494802,3.2187,155.37,155.35,12.07679559]
[1729100495498,85.58853481,155.4,155.35,3.16679559]
[1729100495499,3.2188,155.36,155.35,3.16679559]
[1729100495798,85.58853481,155.4,155.34,8.91]
[1729100497099,3.2186,155.37,155.35,8.91]
[1729100497308,3.2186,155.37,155.35,12.09965776]
[1729100498102,76.67853481,155.4,155.35,12.09965776]
[1729100498305,3.2185,155.38,155.35,12.09965776]
[1729100498697,76.67853481,155.4,155.35,12.09965776]
[1729100499102,3.2187,155.37,155.35,12.09965776]
[1729100499403,76.67853481,155.4,155.35,12.09965776]
[1729100499801,3.2187,155.37,155.35,12.09965776]
[1729100500001,3.2187,155.37,155.35,3.18965776]
[1729100500201,3.2187,155.37,155.33,3.2193]
[1729100500397,3.2187,155.37,155.34,8.91]
[1729100505700,76.67853481,155.4,155.34,8.91]
[1729100507409,3.2187,155.37,155.34,8.91]
[1729100509411,3.2191,155.35,155.32,3.2195]
[1729100509814,3.2191,155.35,155.34,8.91]
[1729100513501,8.91,155.39,155.29,2.7875]
[1729100513704,8.91,155.38,155.32,8.91]
[1729100513909,8.91,155.37,155.32,8.91]
[1729100515110,3.2193,155.34,155.32,8.91]
[1729100516512,3.2193,155.34,155.33,8.91]
[1729100518216,8.91,155.38,155.33,8.91]
[1729100518612,3.2187,155.37,155.33,8.91]
[1729100518807,8.91,155.38,155.33,8.91]
[1729100519519,3.2193,155.34,155.31,3.2197]
[1729100519716,3.2193,155.34,155.32,8.91]
[1729100523124,3.2193,155.34,155.33,8.91]
[1729100523317,1.3598,155.39,155.33,8.91]
[1729100523520,3.2187,155.37,155.36,8.91]
[1729100523820,3.2187,155.37,155.36,12.10094547]
[1729100524020,6.2705,155.4,155.36,12.10094547]
[1729100524420,6.2705,155.4,155.36,3.19094547]
[1729100524628,3.2188,155.36,155.35,8.91]
[1729100524816,3.2188,155.36,155.35,12.17885682]
[1729100527525,3.2185,155.38,155.35,12.17885682]
[1729100527727,3.2185,155.38,155.36,8.91]
[1729100528424,4.94,155.4,155.36,12.20783319]
[1729100529228,4.92,155.41,155.36,12.20783319]
[1729100529421,3.2185,155.38,155.36,12.20783319]
[1729100532521,3.2185,155.38,155.36,3.29783319]
[1729100532828,8.91,155.4,155.35,8.91]
[1729100533229,8.91,155.4,155.35,12.05490233]
[1729100533431,3.2186,155.37,155.35,12.05490233]
[1729100539329,8.91,155.4,155.35,3.14490233]
[1729100539535,3.2188,155.36,155.35,3.14490233]
[1729100539737,3.2188,155.36,155.29,7.7075]
[1729100539738,8.91,155.37,155.31,8.91]
[1729100539936,3.2193,155.34,155.31,12.1297]
[1729100541135,3.2196,155.32,155.31,8.91]
[1729100541541,3.2196,155.32,155.29,7.7075]
[1729100541833,8.91,155.36,155.3,8.91]
[1729100542026,3.2195,155.33,155.3,8.91]
[1729100542233,8.91,155.36,155.3,12.1299]
[1729100542842,3.2191,155.35,155.3,12.1299]
[1729100543141,8.91,155.36,155.32,8.91]
[1729100544438,3.2195,155.33,155.32,8.91]
[1729100545042,4.92,155.37,155.32,8.91]
[1729100545241,4.92,155.41,155.36,8.91]
[1729100545539,4.92,155.41,155.36,12.0954727]
[1729100545741,3.2185,155.38,155.36,12.0954727]
[1729100546835,3.2183,155.39,155.36,12.0954727]
[1729100547236,1.4505,155.46,155.38,8.91]
[1729100547442,3.2177,155.41,155.39,8.91]
[1729100547849,13.83,155.45,155.39,8.91]
[1729100548049,3.2177,155.42,155.39,8.91]
[1729100548244,13.83,155.45,155.39,8.91]
[1729100549447,3.2178,155.41,155.39,8.91]
[1729100550846,13.83,155.45,155.39,8.91]
[1729100551053,3.2176,155.42,155.39,8.91]
[1729100551455,13.83,155.45,155.39,8.91]
[1729100551963,3.2177,155.41,155.39,8.91]
[1729100552564,3.2178,155.41,155.38,8.91]
[1729100553761,14.36910188,155.47,155.36,3.1854727]
[1729100554056,224.0,155.53,155.46,8.91]
[1729100554057,12.19280188,155.52,155.46,8.91]
[1729100554261,1.4437,155.52,155.48,8.91]
[1729100554450,1.4437,155.52,155.48,12.09895317]
[1729100554451,3.2159,155.5,155.48,12.09895317]
[1729100554654,1.4437,155.52,155.48,12.09895317]
[1729100554862,75.9487,155.58,155.48,12.09895317]
[1729100555063,3.216,155.5,155.48,12.09895317]
[1729100555358,4.92,155.53,155.49,8.91]
[1729100556253,3.2158,155.51,155.5,3.2565362]
[1729100556566,3.2158,155.51,155.5,3.24403968]
[1729100556862,3.2158,155.51,155.48,8.91]
[1729100557255,3.2158,155.51,155.48,12.16401144]
[1729100557861,3.2158,155.51,155.48,3.25401144]
[1729100558163,3.2158,155.51,155.48,8.91]
[1729100558460,3.2158,155.51,155.48,12.13602617]
[1729100560061,3.2156,155.52,155.48,12.13602617]
[1729100560264,4.92,155.53,155.48,8.91]
[1729100560666,3.216,155.5,155.48,8.91]
[1729100560965,3.216,155.5,155.48,12.20036013]
[1729100563469,4.92,155.53,155.48,12.20036013]
[1729100564064,3.2161,155.49,155.48,12.20036013]
[1729100571067,3.2161,155.49,155.48,3.29036013]
[1729100571368,3.2167,155.47,155.45,8.91]
[1729100571570,3.2167,155.47,155.45,12.19220783]
[1729100571770,8.91,155.51,155.45,12.19220783]
[1729100572174,3.2166,155.47,155.45,12.19220783]
[1729100575079,3.2166,155.47,155.46,8.91]
[1729100575772,3.2166,155.47,155.46,12.05067168]
[1729100579078,3.2166,155.47,155.46,3.14067168]
[1729100579277,3.2166,155.47,155.46,8.91]
[1729100579477,3.2166,155.47,155.46,12.07274789]
[1729100579879,3.2166,155.47,155.46,3.16274789]
[1729100580082,3.2171,155.45,155.43,8.91]
[1729100580472,6.4298,155.55,155.44,8.91]
[1729100580674,3.2156,155.52,155.48,8.91]
[1729100580873,13.83,155.54,155.48,12.14094384]
[1729100581282,3.216,155.5,155.48,12.14094384]
[1729100583981,4.92,155.53,155.48,12.14094384]
[1729100584293,3.2161,155.49,155.48,12.14094384]
[1729100585781,3.2161,155.49,155.48,3.23094384]
[1729100585977,8.91,155.52,155.46,8.91]
[1729100586284,3.2165,155.47,155.46,12.13473949]
[1729100587385,3.2165,155.47,155.46,3.22473949]
[1729100587585,3.2167,155.46,155.45,8.91]
[1729100587786,3.2167,155.46,155.45,12.19264005]
[1729100592186,3.2166,155.47,155.45,12.19264005]
[1729100592390,3.2166,155.47,155.46,8.91]
[1729100593091,3.2166,155.47,155.46,12.06019568]
[1729100593393,3.2166,155.47,155.46,3.15019568]
[1729100593577,3.2166,155.47,155.44,3.217]
[1729100593885,8.91,155.56,155.46,8.91]
[1729100594088,8.91,155.56,155.51,8.91]
[1729100594289,3.2155,155.52,155.51,8.91]
[1729100594491,3.2155,155.52,155.51,12.16925577]
[1729100594886,3.2153,155.53,155.51,12.16925577]
[1729100595192,11.7717,155.58,155.52,8.91]
[1729100595383,8.91,155.56,155.51,8.91]
[1729100595686,3.2149,155.55,155.51,12.14043565]
[1729100595890,8.91,155.56,155.51,12.14043565]
[1729100596292,3.2154,155.53,155.51,12.14043565]
[1729100599994,3.2149,155.55,155.52,8.91]
[1729100601698,3.2149,155.55,155.51,7.76423565]
[1729100601699,8.91,155.56,155.51,4.54873565]
[1729100602700,4.92,155.57,155.53,8.91]
[1729100603498,13.83,155.57,155.53,8.91]
[1729100603893,3.215,155.54,155.53,8.91]
[1729100606800,4.92,155.57,155.53,8.91]
[1729100607197,3.2147,155.56,155.53,8.91]
[1729100609001,4.92,155.57,155.53,8.91]
[1729100609206,3.2149,155.55,155.53,8.91]
[1729100613416,71.63718561,155.63,155.53,8.91]
[1729100613717,3.2143,155.58,155.54,12.1249]
[1729100618410,3.2141,155.59,155.56,8.91]
[1729100618623,13.83,155.62,155.56,8.91]
[1729100619313,3.2141,155.59,155.56,8.91]
[1729100623321,8.91,155.61,155.55,8.91]
[1729100624326,3.2143,155.58,155.55,8.91]
[1729100625123,22.133,155.67,155.59,3.2139]
[1729100625124,7.703,155.67,155.59,3.2139]
[1729100625316,8.91,155.66,155.6,8.91]
[1729100625522,3.2133,155.63,155.6,12.06311805]
[1729100626123,3.2133,155.63,155.62,8.91]
[1729100626327,3.2133,155.63,155.59,3.214]
[1729100626521,3.2133,155.63,155.61,8.91]
[1729100627632,8.91,155.66,155.59,3.18365595]
[1729100627832,8.91,155.63,155.57,10.3278]
[1729100628327,3.214,155.6,155.57,10.3278]
[1729100628527,3.214,155.6,155.58,8.91]
[1729100630130,3.2135,155.62,155.58,8.91]
[1729100630330,4.92,155.63,155.58,8.91]
[1729100630732,3.2139,155.6,155.58,8.91]
[1729100632934,3.214,155.59,155.58,8.91]
[1729100635330,8.91,155.62,155.53,2.7739]
[1729100635527,3.2146,155.57,155.55,8.91]
[1729100636229,3.2146,155.56,155.55,8.91]
[1729100637030,8.91,155.61,155.54,1.3479]
[1729100637230,3.2148,155.55,155.54,10.2579]
[1729100637831,3.2148,155.55,155.54,1.3479]
[1729100638228,3.2148,155.55,155.54,10.2579]
[1729100643737,4.9,155.6,155.54,10.2579]
[1729100643933,4.9,155.6,155.58,8.91]
[1729100644135,4.9,155.6,155.57,8.91]
[1729100644434,3.2143,155.58,155.57,8.91]
[1729100646035,13.83,155.63,155.57,8.91]
[1729100646336,3.2141,155.59,155.57,8.91]
[1729100646941,8.91,155.64,155.58,8.91]
[1729100647132,4.9,155.63,155.6,8.91]
[1729100647335,4.9,155.63,155.6,12.05615844]
[1729100647840,3.2135,155.62,155.6,12.05615844]
[1729100651540,8.91,155.64,155.6,12.05615844]
[1729100651541,3.2132,155.63,155.6,12.05615844]
[1729100652242,3.2133,155.63,155.6,12.05615844]
[1729100652640,3.2136,155.62,155.6,12.05615844]
[1729100652842,8.91,155.63,155.6,3.14615844]
[1729100653143,8.91,155.63,155.58,8.91]
[1729100653344,3.2137,155.61,155.58,8.91]
[1729100653647,8.91,155.63,155.58,8.91]
[1729100654539,3.2139,155.6,155.58,8.91]
[1729100655942,3.2139,155.6,155.54,1.3479]
[1729100655943,8.91,155.6,155.54,1.3479]
[1729100656142,3.2138,155.6,155.59,3.27035441]
[1729100657145,3.2144,155.58,155.54,4.5629]
[1729100657347,8.91,155.57,155.54,4.5629]
[1729100657540,8.91,155.57,155.54,1.3479]
[1729100658043,12.1245,155.57,155.54,1.3479]
[1729100658236,12.1245,155.57,155.54,10.2579]
[1729100659045,3.2145,155.57,155.54,10.2579]
[1729100659549,3.2147,155.56,155.54,10.2579]
[1729100660245,3.2148,155.55,155.54,8.91]
[1729100660449,8.91,155.56,155.52,8.91]
[1729100661150,8.91,155.56,155.52,12.10736065]
[1729100661945,3.2152,155.53,155.52,12.10736065]
[1729100664545,3.2152,155.53,155.52,3.19736065]
[1729100664747,8.91,155.56,155.51,8.91]
[1729100664942,3.2155,155.52,155.51,12.11066572]
[1729100669750,3.2154,155.53,155.51,12.11066572]
[1729100669947,3.2154,155.53,155.52,8.91]
[1729100670446,3.2152,155.54,155.52,8.91]
[1729100671051,3.2152,155.54,155.53,3.26764073]
[1729100672344,8.91,155.56,155.51,8.91]
[1729100672545,3.2152,155.53,155.51,8.91]
[1729100672949,3.2152,155.53,155.52,3.27258082]
[1729100676847,3.2151,155.54,155.52,3.27258082]
[1729100678159,4.9,155.58,155.52,8.91]
[1729100678359,3.2148,155.56,155.52,15.29968563]
[1729100678560,13.81,155.58,155.52,15.29968563]
[1729100679657,13.81,155.58,155.52,12.08438563]
[1729100679854,3.215,155.55,155.52,12.08438563]
[1729100682159,8.91,155.57,155.52,12.08438563]
[1729100682461,3.2151,155.54,155.52,12.08438563]
[1729100685354,3.2152,155.53,155.52,12.08438563]
[1729100685958,8.91,155.57,155.52,12.08438563]
[1729100686161,3.2152,155.53,155.52,12.08438563]
[1729100696279,3.2152,155.53,155.52,3.17438563]
[1729100696470,8.91,155.54,155.5,8.91]
[1729100696671,3.2157,155.51,155.5,8.91]
[1729100696974,3.2157,155.51,155.5,12.19575806]